fUSD/lending_fUSD_20251225
["ID","MTS","AMOUNT","RATE_DAILY","PERIOD"]
[399698976,1766627441422,-150.0,0.00016232,2]
[399698977,1766627441432,-150.0,0.00016236,2]
[399698978,1766627441442,-150.0,0.00016237,2]
[399698979,1766627441451,-150.0,0.0001625,2]
[399698980,1766627441462,-150.0,0.00016253,2]
[399698981,1766627441473,-150.0,0.00016263,2]
[399698982,1766627441483,-150.0,0.00016265,2]
[399698983,1766627441493,-150.0,0.00016267,2]
[399698984,1766627441503,-150.0,0.00016288,2]
[399698985,1766627441513,-150.0,0.00016297,2]
[399698986,1766627441523,-150.0,0.00016299,2]
[399698987,1766627441533,-150.0,0.00016307,2]
[399698988,1766627441543,-150.0,0.00016325,2]
[399698989,1766627441553,-150.0,0.00016328,2]
[399698990,1766627441563,-150.0,0.00016332,2]
[399698991,1766627441573,-150.0,0.00016344,2]
[399698992,1766627441583,-150.0,0.00016351,2]
[399698993,1766627441593,-1388.25,0.00016352,2]
[399698994,1766627441603,-200.0,0.00016353,2]
[399698995,1766627441613,-200.0,0.00016353,2]
[399698996,1766627441623,-500.0,0.00016353,2]
[399698997,1766627441632,-150.0,0.00016355,2]
[399698998,1766627441642,-150.0,0.00016358,2]
[399698999,1766627441652,-150.0,0.00016361,2]
[399699000,1766627441662,-150.0,0.00016389,2]
[399699001,1766627441672,-150.0,0.00016395,2]
[399699002,1766627441682,-150.0,0.000164,2]
[399699003,1766627441692,-150.0,0.000164,2]
[399699004,1766627441702,-150.0,0.000164,2]
[399699005,1766627441712,-823.0,0.00016405,2]
[399699006,1766627441723,-823.0,0.00016405,2]
[399699007,1766627441733,-150.0,0.0001641,2]
[399699008,1766627441743,-150.0,0.00016419,2]
[399699009,1766627441753,-150.0,0.00016423,2]
[399699010,1766627441762,-150.0,0.00016432,2]
[399699011,1766627441772,-500.0,0.00016437,2]
[399699012,1766627441781,-500.0,0.00016437,2]
[399699013,1766627441791,-500.0,0.00016437,2]
[399699014,1766627441801,-601.96,0.00016437,2]
[399699015,1766627441810,-514.26394542,0.00016437,2]
[399699016,1766627441819,-150.0,0.00016438,2]
[399699017,1766627441829,-807.83744874,0.00016438,2]
[399699018,1766627441839,-150.0,0.00016445,2]
[399699019,1766627441848,-150.0,0.0001645,2]
[399699020,1766627441857,-150.0,0.00016456,2]
[399699021,1766627441867,-150.0,0.00016475,2]
[399699022,1766627441877,-150.0,0.0001648,2]
[399699023,1766627441886,-150.0,0.00016482,2]
[399699024,1766627441895,-150.0,0.00016485,2]
[399699025,1766627441906,-150.0,0.00016488,2]
[399699026,1766627441916,-150.0,0.0001651,2]
[399699027,1766627441928,-150.0,0.00016512,2]
[399699028,1766627441938,-250.45130261,0.00016522,2]
[399699029,1766627441947,-3292.0,0.00016525,2]
[399699030,1766627441957,-150.0,0.00016526,2]
[399699031,1766627441967,-600.0,0.00016529,2]
[399699032,1766627441977,-278.55,0.00016529,2]
[399699033,1766627441986,-150.0,0.00016535,2]
[399699034,1766627441996,-164.09,0.00016537,2]
[399699035,1766627442006,-150.0,0.00016541,2]
[399699036,1766627442015,-150.0,0.00016547,2]
[399699037,1766627442025,-150.0,0.0001655,2]
[399699038,1766627442035,-150.0,0.00016566,2]
[399699039,1766627442044,-150.0,0.00016568,2]
[399699040,1766627442054,-150.0,0.0001657,2]
[399699041,1766627442064,-150.0,0.00016571,2]
[399699042,1766627442073,-462.64,0.00016572,2]
[399699043,1766627442083,-569.01,0.00016592,2]
[399699044,1766627442093,-150.0,0.00016602,2]
[399699045,1766627442103,-150.0,0.00016609,2]
[399699046,1766627442112,-150.0,0.00016614,2]
[399699047,1766627442122,-150.0,0.00016625,2]
[399699048,1766627442131,-150.0,0.00016625,2]
[399699049,1766627442140,-150.0,0.00016625,2]
[399699050,1766627442150,-150.0,0.00016625,2]
[399699051,1766627442159,-150.0,0.00016625,2]
[399699052,1766627442170,-1388.3182989,0.00016626,2]
[399699053,1766627442179,-150.0,0.00016632,2]
[399699054,1766627442189,-150.0,0.00016644,2]
[399699055,1766627442198,-150.0,0.00016658,2]
[399699056,1766627442207,-150.0,0.00016663,2]
[399699057,1766627442216,-150.0,0.00016671,2]
[399699058,1766627442225,-150.0,0.00016681,2]
[399699059,1766627442235,-150.0,0.00016689,2]
[399699060,1766627442244,-150.0,0.00016693,2]
[399699061,1766627442253,-500.0,0.00016694,2]
[399699062,1766627442264,-500.0,0.00016694,2]
[399699063,1766627442273,-517.32845872,0.00016694,2]
[399699064,1766627442283,-2970.59471068,0.00016694,2]
[399699065,1766627442292,-150.0,0.000167,2]
[399699066,1766627442302,-150.0,0.00016701,2]
[399699067,1766627442311,-165.25,0.00016712,2]
[399699068,1766627442320,-500.0,0.00016712,2]
[399699069,1766627442330,-150.0,0.00016715,2]
[399699070,1766627442339,-150.0,0.00016722,2]
[399699071,1766627442349,-150.0,0.00016724,2]
[399699072,1766627442358,-150.0,0.00016733,2]
[399699073,1766627442367,-150.0,0.00016737,2]
[399699074,1766627442376,-150.0,0.00016745,2]
[399699075,1766627442386,-150.0,0.00016754,2]
[399699076,1766627442395,-150.0,0.00016774,2]
[399699077,1766627442404,-150.0,0.00016785,2]
[399699078,1766627442414,-150.0,0.00016789,2]
[399699079,1766627442424,-150.0,0.00016793,2]
[399699080,1766627442434,-150.0,0.00016795,2]
[399699081,1766627442444,-150.0,0.000168,2]
[399699082,1766627442454,-150.0,0.00016804,2]
[399699083,1766627442464,-150.0,0.00016815,2]
[399699084,1766627442473,-600.0,0.00016821,2]
[399699085,1766627442483,-278.55,0.00016821,2]
[399699086,1766627442492,-150.0,0.00016833,2]
[399699087,1766627442502,-164.09,0.00016839,2]
[399699088,1766627442511,-150.0,0.00016846,2]
[399699089,1766627442521,-150.0,0.00016849,2]
[399699090,1766627442530,-150.0,0.00016849,2]
[399699091,1766627442540,-150.0,0.00016849,2]
[399699092,1766627442549,-150.0,0.00016857,2]
[399699093,1766627442559,-150.0,0.00016876,2]
[399699094,1766627442569,-150.0,0.00016877,2]
[399699095,1766627442578,-150.0,0.00016879,2]
[399699096,1766627442588,-150.0,0.00016894,2]
[399699097,1766627442603,-166.0,0.000169,2]
[399699098,1766627442613,-166.0,0.000169,2]
[399699099,1766627442622,-191.62140677,0.000169,2]
[399699100,1766627442633,-890.89,0.000169,2]
[399699101,1766627442649,-200.0,0.00016901,2]
[399699102,1766627442659,-200.0,0.00016901,2]
[399699103,1766627442669,-500.0,0.00016901,2]
[399699104,1766627442679,-150.0,0.00016905,2]
[399699105,1766627442689,-150.0,0.00016906,2]
[399699106,1766627442699,-462.64,0.00016907,2]
[399699107,1766627442708,-676.65137989,0.00016908,2]
[399699108,1766627442718,-690.12276909,0.00016913,2]
[399699109,1766627442727,-150.0,0.00016919,2]
[399699110,1766627442737,-150.0,0.00016921,2]
[399699111,1766627442747,-299.99,0.00016922,4]
[399699112,1766627442756,-150.99,0.00016922,2]
[399699113,1766627442766,-5528.98,0.00016922,2]
[399699114,1766627442776,-150.99,0.00016922,2]
[399699115,1766627442786,-406.16,0.00016922,2]
[399699116,1766627442796,-7711.25,0.00016922,2]
[399699117,1766627442806,-999.99,0.00016922,2]
[399699118,1766627442815,-4999.99,0.00016922,2]
[399699119,1766627442825,-309.16,0.00016922,2]
[399699120,1766627442835,-499.99,0.00016922,2]
[399699121,1766627442844,-9999.99,0.00016922,2]
[399699122,1766627442853,-5431.02,0.00016922,2]
[399699123,1766627442864,-567.09,0.00016922,2]
[399699124,1766627442873,-9999.99,0.00016922,2]
[399699125,1766627442884,-9999.99,0.00016922,2]
[399699126,1766627442895,-150.0,0.00016924,2]
[399699127,1766627442905,-201.12732165,0.00016929,2]
[399699128,1766627442917,-150.0,0.00016937,2]
[399699129,1766627442927,-150.0,0.00016946,2]
[399699130,1766627442937,-150.0,0.00016957,2]
[399699131,1766627442947,-150.0,0.00016962,2]
[399699132,1766627442955,-150.0,0.00016964,2]
[399699133,1766627442965,-150.0,0.00016967,2]
[399699134,1766627442974,-164.91223401,0.00016973,2]
[399699135,1766627442984,-502.13639461,0.00016973,2]
[399699136,1766627442995,-500.59611771,0.00016973,2]
[399699137,1766627443005,-500.88003049,0.00016973,2]
[399699138,1766627443015,-500.0,0.00016973,2]
[399699139,1766627443025,-501.71978419,0.00016973,2]
[399699140,1766627443035,-254.3031995,0.00016973,2]
[399699141,1766627443044,-500.0,0.00016973,2]
[399699142,1766627443055,-500.0,0.00016973,2]
[399699143,1766627443064,-500.34321322,0.00016973,2]
[399699144,1766627443074,-162.14010423,0.00016973,2]
[399699145,1766627443083,-500.0,0.00016973,2]
[399699146,1766627443093,-500.0,0.00016973,2]
[399699147,1766627443103,-538.67026127,0.00016973,2]
[399699148,1766627443113,-500.0,0.00016973,2]
[399699149,1766627443123,-174.86770557,0.00016973,2]
[399699150,1766627443132,-500.0,0.00016973,2]
[399699151,1766627443142,-500.0,0.00016973,2]
[399699152,1766627443152,-500.0,0.00016973,2]
[399699153,1766627443163,-318.77837914,0.00016973,2]
[399699154,1766627443173,-500.0,0.00016973,2]
[399699155,1766627443182,-500.0,0.00016973,2]
[399699156,1766627443192,-150.0,0.00016973,2]
[399699157,1766627443202,-150.0,0.00016973,2]
[399699158,1766627443212,-150.0,0.00016981,2]
[399699159,1766627443222,-505.30351694,0.00016983,2]
[399699160,1766627443231,-150.0,0.00016984,2]
[399699161,1766627443242,-500.0,0.00016986,2]
[399699162,1766627443251,-500.0,0.00016986,2]
[399699163,1766627443261,-500.0,0.00016986,2]
[399699164,1766627443271,-500.0,0.00016986,2]
[399699165,1766627443281,-500.0,0.00016986,2]
[399699166,1766627443291,-500.0,0.00016986,2]
[399699167,1766627443301,-579.92879926,0.00016986,2]
[399699168,1766627443311,-151.0,0.00016996,2]
[399699169,1766627443321,-151.0,0.00016997,2]
[399699170,1766627443330,-150.0,0.00016998,2]
[399699171,1766627443340,-500.0,0.00016998,2]
[399699172,1766627443350,-500.0,0.00016998,2]
[399699173,1766627443359,-500.0,0.00016998,2]
[399699174,1766627443369,-511.43849026,0.00016998,2]
[399699175,1766627443378,-591.34092461,0.00016998,2]
[399699176,1766627443388,-2638.2723312,0.00016999,2]
[399699177,1766627443398,-16190.940261,0.00016999,2]
[399699178,1766627443407,-358699.1041097,0.00016999,2]
[399699179,1766627443417,-500.0,0.00016999,2]
[399699180,1766627443427,-500.0,0.00016999,2]
[399699181,1766627443436,-500.0,0.00016999,2]
[399699182,1766627443446,-508.51346411,0.00016999,2]
[399699183,1766627443455,-500.0,0.00016999,2]
[399699184,1766627443465,-500.0,0.00016999,2]
[399699185,1766627443475,-500.0,0.00016999,2]
[399699186,1766627443485,-500.0,0.00016999,2]
[399699187,1766627443495,-500.0,0.00016999,2]
[399699188,1766627443504,-500.0,0.00016999,2]
[399699189,1766627443514,-395.45300292,0.00016999,2]
[399699190,1766627443524,-500.0,0.00016999,2]
[399699191,1766627443534,-500.0,0.00016999,2]
[399699192,1766627443544,-500.0,0.00016999,2]
[399699193,1766627443555,-500.0,0.00016999,2]
[399699194,1766627443565,-500.0,0.00016999,2]
[399699195,1766627443575,-500.0,0.00016999,2]
[399699196,1766627443585,-500.0,0.00016999,2]
[399699197,1766627443594,-277.24826677,0.00016999,2]
[399699198,1766627443604,-601.96,0.00016999,2]
[399699199,1766627443615,-601.96,0.00016999,2]
[399699200,1766627443625,-601.96,0.00016999,2]
[399699201,1766627443635,-601.96,0.00016999,2]
[399699202,1766627443645,-601.96,0.00016999,2]
[399699203,1766627443655,-601.96,0.00016999,2]
[399699204,1766627443669,-601.96,0.00016999,2]
[399699205,1766627443678,-601.96,0.00016999,2]
[399699206,1766627443689,-601.96,0.00016999,2]
[399699207,1766627443700,-601.96,0.00016999,2]
[399699208,1766627443711,-601.96,0.00016999,2]
[399699209,1766627443721,-601.96,0.00016999,2]
[399699211,1766627443730,-601.96,0.00016999,2]
[399699212,1766627443740,-601.96,0.00016999,2]
[399699213,1766627443750,-601.96,0.00016999,2]
[399699214,1766627443759,-601.96,0.00016999,2]
[399699215,1766627443769,-602.19911146,0.00016999,2]
[399699216,1766627443778,-150.0,0.00016999,2]
[399699217,1766627443787,-2810261.34552786,0.00017,2]
[399699218,1766627443798,-156.41730905,0.00017,2]
[399699219,1766627443807,-150.0,0.00017008,2]
[399699220,1766627443817,-150.0,0.00017018,2]
[399699221,1766627443827,-150.0,0.00017028,2]
[399699222,1766627443837,-150.0,0.00017035,2]
[399699223,1766627443847,-150.0,0.00017043,2]
[399699224,1766627443857,-150.0,0.00017052,2]
[399699225,1766627443867,-150.0,0.00017059,2]
[399699226,1766627443876,-150.0,0.00017074,2]
[399699227,1766627443886,-150.0,0.00017074,2]
[399699228,1766627443897,-150.0,0.00017074,2]
[399699229,1766627443907,-150.0,0.00017074,2]
[399699230,1766627443921,-150.0,0.00017074,2]
[399699231,1766627443930,-150.0,0.00017074,2]
[399699232,1766627443940,-150.0,0.00017089,2]
[399699233,1766627443950,-150.0,0.00017096,2]
[399699234,1766627443962,-150.0,0.00017105,2]
[399699235,1766627443972,-150.0,0.00017113,2]
[399699236,1766627443982,-150.0,0.0001712,2]
[399699237,1766627443992,-150.0,0.0001713,2]
[399699238,1766627444002,-150.0,0.0001714,2]
[399699239,1766627444013,-150.0,0.00017149,2]
[399699240,1766627444023,-150.0,0.0001715,2]
[399699241,1766627444034,-390.47,0.00017153,2]
[399699242,1766627444044,-150.0,0.00017164,2]
[399699243,1766627444054,-150.0,0.00017167,2]
[399699244,1766627444064,-1098.0,0.0001718,2]
[399699245,1766627444074,-150.0,0.00017181,2]
[399699246,1766627444085,-150.0,0.00017184,2]
[399699247,1766627444095,-150.0,0.00017186,2]
[399699248,1766627444106,-150.0,0.00017191,2]
[399699249,1766627444116,-390.47,0.00017193,2]
[399699250,1766627444125,-150.0,0.00017202,2]
[399699251,1766627444135,-150.0,0.00017211,2]
[399699252,1766627444145,-218.79,0.00017216,2]
[399699253,1766627444155,-150.0,0.00017224,2]
[399699254,1766627444165,-150.0,0.00017227,2]
[399699255,1766627444175,-150.0,0.00017229,2]
[399699256,1766627444185,-390.46800371,0.00017232,2]
[399699257,1766627444195,-150.0,0.00017242,2]
[399699258,1766627444205,-150.0,0.00017242,2]
[399699259,1766627444215,-150.0,0.00017254,2]
[399699260,1766627444225,-150.0,0.00017269,2]
[399699261,1766627444234,-150.0,0.00017271,2]
[399699262,1766627444244,-150.0,0.00017272,2]
[399699263,1766627444253,-569.01,0.00017283,2]
[399699264,1766627444263,-1600.0,0.00017287,2]
[399699265,1766627444272,-150.0,0.00017291,2]
[399699266,1766627444282,-257.02,0.00017293,2]
[399699267,1766627444292,-2970.59471068,0.00017297,2]
[399699268,1766627444301,-150.0,0.00017299,2]
[399699269,1766627444311,-150.0,0.00017299,2]
[399699270,1766627444321,-150.0,0.00017299,2]
[399699271,1766627444332,-150.0,0.00017302,2]
[399699272,1766627444352,-150.0,0.00017315,2]
[399699273,1766627444364,-150.0,0.00017333,2]
[399699274,1766627444374,-150.0,0.00017344,2]
[399699275,1766627444384,-257.02,0.00017345,2]
[399699276,1766627444394,-150.0,0.00017347,2]
[399699277,1766627444403,-150.0,0.00017353,2]
[399699278,1766627444413,-150.0,0.00017355,2]
[399699279,1766627444423,-150.0,0.00017359,2]
[399699280,1766627444433,-150.0,0.00017363,2]
[399699281,1766627444443,-150.0,0.00017374,2]
[399699282,1766627444452,-150.0,0.00017394,2]
[399699283,1766627444461,-257.02,0.00017396,2]
[399699284,1766627444471,-150.0,0.00017403,2]
[399699285,1766627444481,-150.0,0.00017411,2]
[399699286,1766627444491,-150.0,0.00017415,2]
[399699287,1766627444501,-150.0,0.00017424,2]
[399699288,1766627444511,-150.0,0.00017426,2]
[399699289,1766627444520,-150.0,0.00017433,2]
[399699290,1766627444529,-150.0,0.00017447,2]
[399699291,1766627444539,-150.0,0.00017448,2]
[399699292,1766627444548,-200.0,0.00017449,2]
[399699293,1766627444558,-200.0,0.00017449,2]
[399699294,1766627444568,-500.0,0.00017449,2]
[399699295,1766627444578,-150.0,0.00017455,2]
[399699296,1766627444588,-150.0,0.00017459,2]
[399699297,1766627444600,-150.0,0.00017467,2]
[399699298,1766627444612,-1252.0,0.00017476,2]
[399699299,1766627444623,-150.0,0.00017477,2]
[399699300,1766627444633,-150.0,0.00017485,2]
[399699301,1766627444643,-150.0,0.0001749,2]
[399699302,1766627444652,-150.0,0.00017504,2]
[399699303,1766627444663,-150.0,0.00017516,2]
[399699304,1766627444672,-1000.0,0.00017521,2]
[399699305,1766627444682,-502.81609177,0.00017521,2]
[399699306,1766627444692,-1000.0,0.00017521,2]
[399699307,1766627444702,-1000.0,0.00017521,2]
[399699308,1766627444712,-1001.34564897,0.00017521,2]
[399699309,1766627444722,-501.97014703,0.00017521,2]
[399699310,1766627444732,-340.58517004,0.00017521,2]
[399699311,1766627444742,-1000.0,0.00017521,2]
[399699312,1766627444752,-1000.0,0.00017521,2]
[399699313,1766627444761,-888.47775087,0.00017521,2]
[399699314,1766627444771,-502.2966499,0.00017521,2]
[399699315,1766627444782,-150.0,0.00017523,2]
[399699316,1766627444791,-150.0,0.00017523,2]
[399699317,1766627444801,-150.0,0.00017523,2]
[399699318,1766627444811,-150.0,0.00017523,2]
[399699319,1766627444821,-150.0,0.00017523,2]
[399699320,1766627444831,-150.0,0.00017534,2]
[399699321,1766627444840,-150.0,0.00017539,2]
[399699322,1766627444851,-150.0,0.00017546,2]
[399699323,1766627444860,-150.0,0.00017577,2]
[399699324,1766627444870,-150.0,0.00017578,2]
[399699325,1766627444880,-150.0,0.00017579,2]
[399699326,1766627444889,-150.0,0.00017582,2]
[399699327,1766627444899,-150.0,0.00017598,2]
[399699328,1766627444909,-150.0,0.00017601,2]
[399699329,1766627444918,-150.0,0.00017607,2]
[399699330,1766627444929,-150.0,0.00017613,2]
[399699331,1766627444936,-150.0,0.00017622,2]
[399699332,1766627444945,-150.0,0.00017636,2]
[399699333,1766627444953,-150.0,0.00017638,2]
[399699334,1766627444960,-150.0,0.0001766,2]
[399699335,1766627444969,-150.0,0.00017663,2]
[399699336,1766627444978,-150.0,0.00017666,2]
[399699337,1766627444987,-150.0,0.00017668,2]
[399699338,1766627444996,-150.0,0.00017673,2]
[399699339,1766627445006,-150.0,0.00017692,2]
[399699340,1766627445018,-150.0,0.00017698,2]
[399699341,1766627445252,-150.0,0.00017703,2]
[399699342,1766627445264,-150.0,0.0001771,2]
[399699343,1766627445274,-150.0,0.00017716,2]
[399699344,1766627445284,-150.0,0.00017725,2]
[399699345,1766627445294,-150.0,0.00017729,2]
[399699346,1766627445304,-150.0,0.00017738,2]
[399699347,1766627445314,-150.0,0.00017748,2]
[399699348,1766627445323,-150.0,0.00017748,2]
[399699349,1766627445333,-150.0,0.00017748,2]
[399699350,1766627445343,-150.0,0.00017753,2]
[399699351,1766627445353,-150.0,0.00017759,2]
[399699352,1766627445363,-150.0,0.00017787,2]
[399699353,1766627445374,-150.0,0.0001779,2]
[399699354,1766627445383,-150.0,0.00017793,2]
[399699355,1766627445393,-150.0,0.00017797,2]
[399699356,1766627445403,-150.0,0.00017804,2]
[399699357,1766627445414,-150.0,0.00017816,2]
[399699358,1766627445424,-150.0,0.0001782,2]
[399699359,1766627445435,-150.0,0.00017823,2]
[399699360,1766627445444,-150.0,0.00017841,2]
[399699361,1766627445456,-150.0,0.00017849,2]
[399699362,1766627445467,-150.0,0.00017851,2]
[399699363,1766627445477,-150.0,0.0001786,2]
[399699364,1766627445487,-150.0,0.00017881,2]
[399699365,1766627445497,-150.0,0.00017883,2]
[399699366,1766627445507,-150.0,0.00017885,2]
[399699367,1766627445517,-150.0,0.00017894,2]
[399699368,1766627445527,-150.0,0.00017898,2]
[399699369,1766627445538,-1500.00387024,0.000179,2]
[399699370,1766627445548,-2970.59471068,0.000179,2]
[399699371,1766627445557,-150.0,0.00017911,2]
[399699372,1766627445568,-150.0,0.00017912,2]
[399699373,1766627445578,-150.0,0.00017916,2]
[399699374,1766627445588,-150.0,0.00017929,2]
[399699375,1766627445598,-150.0,0.00017942,2]
[399699376,1766627445608,-160.21286589,0.00017973,2]
[399699377,1766627445618,-161.55579028,0.00017973,2]
[399699378,1766627445628,-158.29252413,0.00017973,2]
[399699379,1766627445638,-165.70983319,0.00017973,2]
[399699380,1766627445647,-152.25373141,0.00017973,2]
[399699381,1766627445658,-151.71730241,0.00017973,2]
[399699382,1766627445668,-156.72302868,0.00017973,2]
[399699383,1766627445678,-157.52336469,0.00017973,2]
[399699384,1766627445688,-152.90599423,0.00017973,2]
[399699385,1766627445698,-182.03949024,0.00017973,2]
[399699386,1766627445708,-155.88925642,0.00017973,2]
[399699387,1766627445718,-500.0,0.00017973,2]
[399699388,1766627445729,-500.63458912,0.00017973,2]
[399699389,1766627445739,-500.60355616,0.00017973,2]
[399699390,1766627445748,-500.0,0.00017973,2]
[399699391,1766627445758,-500.0,0.00017973,2]
[399699392,1766627445768,-500.54662935,0.00017973,2]
[399699393,1766627445777,-500.86568541,0.00017973,2]
[399699394,1766627445786,-500.40079823,0.00017973,2]
[399699395,1766627445796,-500.0,0.00017973,2]
[399699396,1766627445806,-500.88915437,0.00017973,2]
[399699397,1766627445816,-500.79213904,0.00017973,2]
[399699398,1766627445826,-500.86507017,0.00017973,2]
[399699399,1766627445836,-556.36134063,0.00017973,2]
[399699400,1766627445847,-500.74813979,0.00017973,2]
[399699401,1766627445856,-500.49282499,0.00017973,2]
[399699402,1766627445866,-500.61562744,0.00017973,2]
[399699403,1766627445876,-519.21966727,0.00017973,2]
[399699404,1766627445886,-500.77480786,0.00017973,2]
[399699405,1766627445895,-500.78077374,0.00017973,2]
[399699406,1766627445905,-334.84055998,0.00017973,2]
[399699407,1766627445918,-500.90310449,0.00017973,2]
[399699408,1766627445932,-500.41775536,0.00017973,2]
[399699409,1766627445942,-500.0,0.00017973,2]
[399699410,1766627445952,-500.80456344,0.00017973,2]
[399699411,1766627445962,-500.52474032,0.00017973,2]
[399699412,1766627445972,-162.49487187,0.00017973,2]
[399699413,1766627445982,-500.51228982,0.00017973,2]
[399699414,1766627445993,-570.68845566,0.00017973,2]
[399699415,1766627446004,-500.0,0.00017973,2]
[399699416,1766627446013,-501.24588954,0.00017973,2]
[399699417,1766627446024,-500.0,0.00017973,2]
[399699418,1766627446034,-500.0,0.00017973,2]
[399699419,1766627446044,-500.69275489,0.00017973,2]
[399699420,1766627446055,-500.0,0.00017973,2]
[399699421,1766627446064,-156.6442189,0.00017973,2]
[399699422,1766627446074,-160.29280988,0.00017973,2]
[399699423,1766627446084,-500.55331252,0.00017973,2]
[399699424,1766627446094,-150.27801534,0.00017973,2]
[399699425,1766627446105,-500.69120585,0.00017973,2]
[399699426,1766627446115,-640.3987434,0.00017973,2]
[399699427,1766627446124,-500.0,0.00017973,2]
[399699428,1766627446134,-160.24858411,0.00017973,2]
[399699429,1766627446144,-500.70783862,0.00017973,2]
[399699430,1766627446154,-501.01240228,0.00017973,2]
[399699431,1766627446164,-500.31412662,0.00017973,2]
[399699432,1766627446175,-160.30019864,0.00017973,2]
[399699433,1766627446185,-160.30090305,0.00017973,2]
[399699434,1766627446195,-500.0,0.00017973,2]
[399699435,1766627446205,-500.0,0.00017973,2]
[399699436,1766627446215,-566.83202422,0.00017973,2]
[399699437,1766627446225,-500.0,0.00017973,2]
[399699438,1766627446235,-500.0,0.00017973,2]
[399699439,1766627446247,-500.0,0.00017973,2]
[399699440,1766627446257,-500.41500707,0.00017973,2]
[399699441,1766627446267,-181.13374875,0.00017973,2]
[399699442,1766627446277,-501.09702076,0.00017973,2]
[399699443,1766627446287,-500.80128753,0.00017973,2]
[399699444,1766627446296,-509.50570613,0.00017973,2]
[399699445,1766627446306,-500.0,0.00017973,2]
[399699446,1766627446317,-500.0,0.00017973,2]
[399699447,1766627446327,-500.0,0.00017973,2]
[399699448,1766627446337,-500.76713087,0.00017973,2]
[399699449,1766627446347,-640.12294219,0.00017973,2]
[399699450,1766627446356,-500.0,0.00017973,2]
[399699451,1766627446366,-575.68505042,0.00017973,2]
[399699453,1766627446376,-150.03278669,0.00017973,2]
[399699454,1766627446386,-500.0,0.00017973,2]
[399699455,1766627446396,-160.29886293,0.00017973,2]
[399699456,1766627446406,-506.56244638,0.00017973,2]
[399699457,1766627446415,-164.92711325,0.00017973,2]
[399699458,1766627446425,-500.0,0.00017973,2]
[399699459,1766627446435,-500.73923118,0.00017973,2]
[399699460,1766627446445,-500.0,0.00017973,2]
[399699461,1766627446455,-207.62162808,0.00017973,2]
[399699462,1766627446465,-500.0,0.00017973,2]
[399699463,1766627446475,-500.30840476,0.00017973,2]
[399699464,1766627446484,-500.0,0.00017973,2]
[399699465,1766627446494,-569.01,0.00017974,2]
[399699466,1766627446504,-223.0315306,0.00017995,2]
[399699467,1766627446514,-200.0,0.00017997,2]
[399699469,1766627446523,-200.0,0.00017997,2]
[399699470,1766627446535,-500.0,0.00017997,2]
[399699471,1766627446544,-147990.85714411,0.00017998,2]
[399699472,1766627446554,-621929.44545304,0.00018,2]
[399699473,1766627446564,-55188.2813855,0.00018,2]
[399699474,1766627446574,-1186.06717948,0.00018,2]
[399699475,1766627446584,-1152.0,0.00018001,2]
[399699476,1766627446594,-1152.0,0.00018001,2]
[399699477,1766627446604,-205.73,0.00018044,2]
[399699478,1766627446615,-506.53433204,0.00018068,2]